[Event "44th Chess Olympiad Open 2022"]
[Site "Chennai"]
[Date "2022.08.07"]
[Round "9.32"]
[White "Sanchez, Sebastian Felipe"]
[Black "Steil-Antoni, Fiona"]
[Result "1-0"]
[WhiteElo "2440"]
[BlackElo "2218"]
[Annotator "TA"]
[PlyCount "55"]
[EventDate "2022.??.??"]
[TimeControl "60"]

{[%evp 9,55,78,118,49,54,47,82,82,69,69,97,37,129,126,189,188,478,299,556,234,
338,375,377,308,333,133,300,143,627,616,614,578,895,918,1166,1141,1395,1375,
1671,1683,1658,1597,29986,3021,2255,1363,29989,29990]} 1. d4 {[%emt 0:00:03]}
f5 {[%emt 0:00:11]} 2. Bg5 {[%emt 0:00:57]} c6 {[%emt 0:00:32]} 3. e3 {[%emt 0:
00:00]} Qb6 {[%emt 0:00:49]} 4. Nd2 {[%emt 0:05:08]} Qxb2 {[%emt 0:01:22]} 5.
Bd3 {[%emt 0:00:16]} e6 {[%emt 0:02:46] [#]} 6. Nc4 $146 {[%emt 0:23:01] A80:
Dutch Defence: Unusual White second moves.} (6. Nh3 $16) ({Predecessor:} 6. Ne2
d5 7. Nf4 g6 8. h4 Bg7 9. h5 e5 10. Rb1 Qa3 11. dxe5 Na6 12. hxg6 {1-0 (27)
Zucchelli,M (2215)-Campanile,A (2255) Porto San Giorgio 1995}) 6... Qb4+ $1 $14
{[%emt 0:18:10]} 7. Kf1 {[%emt 0:02:38][%cal Yc2c3] White has compensation.} b5
{[%emt 0:02:47]} 8. Rb1 {[%emt 0:00:58] White is better.} Qa4 {[%emt 0:02:37]}
9. Ne5 {[%emt 0:00:08]} g6 {[%emt 0:01:57] Prevents Qh5.} 10. Ne2 {[%emt 0:02:
12] 0x0.0005ec18fd53dp-1022s more active pieces.} ({Better is} 10. e4 $1 $16 {
[%cal Re4f5]}) 10... Be7 {[%emt 0:03:43]} (10... Bg7 $14) 11. h4 $1 $16 {
[%emt 0:01:37]} Qa5 {[%emt 0:04:52]} (11... Ba6 $16) 12. Nf4 $18 {[%emt 0:20:
35] Threatens to win with e4.} Qd8 $2 {[%emt 0:08:42]} (12... d6 {might work
better.}) 13. Qf3 {[%emt 0:00:00][%cal Yh4h5]} d5 $2 {[%emt 0:14:04] [#]} (
13... d6 {was necessary.}) 14. g4 {[%emt 0:02:33]} (14. h5 $142 $1 {[%cal
Yh5g6]} Bxg5 15. hxg6) 14... Nf6 {[%emt 0:04:08]} (14... a5 $142 15. Nxe6 Bxe6)
15. gxf5 {[%emt 0:18:05]} exf5 {[%emt 0:00:49]} 16. Qg3 {[%emt 0:00:40]} Rg8 {
[%emt 0:06:14]} 17. f3 $2 {[%emt 0:00:55]} (17. h5 $18 {is more deadly.} Ne4
18. Bxe4 Bxg5 {[#]} 19. hxg6 $1 hxg6 20. Bg2) 17... Qa5 $2 {[%emt 0:04:49]} (
17... a6 $16 {was worth a try.} 18. Qh2 Ra7) 18. Ke2 {[%emt 0:04:07]} (18. h5
$18 Nxh5 19. Nxh5 gxh5 20. Rxh5) 18... b4 $2 {[%emt 0:00:09] A mistake that
costs the game.} (18... Qc7 $16) 19. h5 {[%emt 0:02:12][%cal Rh5g6]} Ba6 {
[%emt 0:05:54]} 20. hxg6 {[%emt 0:00:13]} Qxa2 {[%emt 0:01:23]} 21. Kd2 {
[%emt 0:03:11]} Bxd3 {[%emt 0:02:46]} 22. Nfxd3 {[%emt 0:00:26]} b3 {[%emt 0:
02:51]} 23. Rxb3 {[%emt 0:00:09] Bxf6 is the strong threat.} hxg6 {[%emt 0:03:
56]} 24. Qh4 {[%emt 0:04:39]} Qa5+ {[%emt 0:00:00]} 25. Ke2 {[%emt 0:00:05]}
Qd8 {[%emt 0:00:00]} 26. Rb7 {[%emt 0:00:06]} (26. Bxf6 $142 Bxf6 27. Qh7 Rg7
28. Qh8+ Ke7 29. Rb7+ Nd7 30. Nxc6+ Ke6 31. Nxd8+ Rxd8 32. Qh6) 26... Nbd7 {
[%emt 0:00:12]} 27. Nxd7 {[%emt 0:00:12]} Nxd7 {[%emt 0:03:44]} 28. Bxe7 {
[%emt 0:00:09] Weighted Error Value: White=0.55/Black=1.74} 1-0

[Event "44th Chess Olympiad Open 2022"]
[Site "Chennai"]
[Date "2022.08.07"]
[Round "9.32"]
[White "Berend, Elvira"]
[Black "Avila Pavas, Santiago"]
[Result "0-1"]
[WhiteElo "2333"]
[BlackElo "2453"]
[Annotator "TA"]
[PlyCount "84"]
[EventDate "2022.??.??"]
[TimeControl "60"]

{[%evp 13,84,5,14,0,0,0,35,-67,-38,-43,-34,-57,-54,-34,-29,0,0,-108,-106,-110,
-111,-118,-116,-105,-98,-104,-100,-191,-158,-165,-96,-158,-158,-160,-191,-243,
-239,-326,-324,-376,-386,-368,-370,-435,-428,-434,-265,-285,-283,-413,-318,
-344,-305,-407,-403,-395,-401,-392,-375,-437,-441,-437,-418,-424,-414,-367,
-337,-505,-498,-484,-484,-451,-418]} 1. e4 {[%emt 0:00:05]} c6 {[%emt 0:00:07]}
2. d4 {[%emt 0:01:09]} d5 {[%emt 0:00:08]} 3. e5 {[%emt 0:03:10]} Bf5 {[%emt 0:
00:00]} 4. Nf3 {[%emt 0:03:04]} e6 {[%emt 0:00:09]} 5. Be2 {[%emt 0:00:45]} c5
{[%emt 0:00:11]} 6. O-O {[%emt 0:04:37]} Nc6 {[%emt 0:01:17]} 7. Be3 {[%emt 0:
00:00]} Qb6 {[%emt 0:01:37]} 8. Nc3 {[%emt 0:09:12] B12: Caro-Kann: Advance
Variation.} Qxb2 {[%emt 0:00:10]} 9. Nb5 {[%emt 0:01:16] Strongly threatening
Nc7+.} c4 {[%emt 0:00:07]} 10. Nc7+ {[%emt 0:40:27] 10.Rb1 is vanishing.} ({
White should play} 10. Rb1 $1 $14 Qxa2 11. Nc7+ Kd8 12. Ra1 (12. Nxa8 Bxc2 13.
Ra1 Bxd1 $14) 12... Qxc2 13. Qxc2 (13. Nxa8 Qxd1 14. Rfxd1 Kc8 $11) 13... Bxc2
14. Nxa8) 10... Kd7 $1 $15 {[%emt 0:00:11]} 11. Nxa8 {[%emt 0:00:30] Threatens
to win with Rb1.} Bxc2 {[%emt 0:00:11]} 12. Qc1 {[%emt 0:01:28]} Ba3 {[%emt 0:
00:00] Black has compensation.} 13. Ne1 {[%emt 0:07:14]} Bg6 {[%emt 0:01:39]
White must now prevent ...Nge7.} 14. Qd1 $1 {[%emt 0:00:38][%cal Ye2d3] [#]}
Nge7 $146 {[%emt 0:02:09]} ({Predecessor:} 14... b5 15. h4 h5 16. Bd3 cxd3 17.
Rb1 Qe2 18. Qb3 b4 19. Rd1 Nge7 20. Qa4 Rxa8 {0-1 (49) Dechant,G (2065)
-Dornieden,J (1912) Braunschweig 2019}) 15. Nd3 {[%emt 0:00:43]} Qb5 $36 {
[%emt 0:23:59] Black has strong initiative.} (15... cxd3 16. Bxd3 Rxa8 17. Bxg6
hxg6 18. Rb1 Qxa2 19. Qa4) 16. Nf4 {[%emt 0:03:12]} Rxa8 {[%emt 0:00:35]
Active counter play!} 17. Nxg6 {[%emt 0:00:01]} hxg6 {[%emt 0:00:00]} 18. Rb1 {
[%emt 0:01:54] [#]} Qa6 {[%emt 0:00:08]} 19. g4 {[%emt 0:00:00]} b5 {[%emt 0:
04:29][%cal Yb7b5,Yb5b4]} 20. Kg2 {[%emt 0:00:41]} (20. f4 $17) 20... Bb4 $19 {
[%emt 0:03:16]} 21. Qc2 {[%emt 0:00:57] Inhibits Bc3.} Ba5 {[%emt 0:00:34]} (
21... Qa3 $19 22. Qb2 Qxb2 23. Rxb2 a6) 22. h4 {[%emt 0:00:27] [#]} ({Better is
} 22. a3) 22... Bb6 $1 $17 {[%emt 0:00:41]} 23. Rfd1 {[%emt 0:00:53]} Rh8 {
[%emt 0:02:04]} 24. Kg3 {[%emt 0:00:31]} (24. a3 $142) 24... b4 {[%emt 0:08:08]
} 25. Bf1 {[%emt 0:02:17]} Qa3 {[%emt 0:01:17]} 26. Qb2 {[%emt 0:03:23]} Qxb2 {
[%emt 0:00:14] Dancing on a razor blade.} 27. Rxb2 {[%emt 0:00:03]} a5 {
[%emt 0:00:10][%cal Ya7a5,Ya5a4]} 28. Be2 {[%emt 0:00:51]} a4 {[%emt 0:00:34]}
29. Rc1 {[%emt 0:08:14]} Rc8 {[%emt 0:00:00]} (29... Bxd4 $2 30. Bxd4 Nxd4 31.
Bxc4 dxc4 32. Rd2 $19) 30. Bd1 {[%emt 0:00:00]} Ra8 {[%emt 0:00:58]} ({And not
} 30... Bxd4 31. Bxd4 Nxd4 32. Rxb4 $17 (32. Bxa4+ $2 Kc7 $19)) 31. f4 {
[%emt 0:00:00]} (31. Kg2 {was called for.}) 31... Ra7 {[%emt 0:02:24] ...b3 is
the strong threat.} 32. Rcb1 {[%emt 0:00:00]} Kc7 {[%emt 0:05:11]} 33. Rxb4 {
[%emt 0:00:01]} Nxb4 {[%emt 0:00:07]} 34. Rxb4 {[%emt 0:00:02]} a3 {[%emt 0:00:
08]} 35. Ra4 {[%emt 0:01:16]} Nc6 {[%emt 0:00:00]} 36. Rxa7+ {[%emt 0:00:07]}
Bxa7 $19 {[%emt 0:00:06] Endgame KBB-KBN} (36... Nxa7 $2 {too greedy.} 37. Ba4
$19) 37. Bc1 {[%emt 0:00:13]} Nxd4 {[%emt 0:04:28]} 38. Bxa3 {[%emt 0:00:50]}
c3 {[%emt 0:09:30][%cal Yc4c3,Yc3c2] And now ...c2 would win.} 39. Ba4 {
[%emt 0:01:25]} c2 {[%emt 0:00:00][%cal Ya7c5]} 40. Kh3 {[%emt 0:00:05] [#]} (
40. Bb2 $142 Bc5 41. Be8) 40... Bc5 $1 {[%emt 0:03:49] Black is clearly
winning.} 41. Bb2 {[%emt 0:34:00] [#]} Bb4 $1 {[%emt 0:30:56]} 42. h5 {[%emt 0:
00:00] [#]} Bd2 $1 {[%emt 0:00:00] Weighted Error Value: White=0.31/Black=0.13
(very precise)} 0-1

[Event "44th Chess Olympiad Open 2022"]
[Site "Chennai"]
[Date "2022.08.07"]
[Round "9.32"]
[White "Gengler, Pierre"]
[Black "Valderrama Quiceno, Esteban Alb"]
[Result "0-1"]
[WhiteElo "2194"]
[BlackElo "2436"]
[Annotator "TA"]
[PlyCount "76"]
[EventDate "2022.??.??"]
[TimeControl "60"]

{[%evp 9,76,-33,-30,-41,2,-20,-4,-68,-60,-75,-66,-102,-89,-106,-106,-89,-60,
-97,-77,-160,-166,-177,-189,-223,-217,-225,-206,-243,-246,-304,-311,-293,-282,
-308,-283,-283,-259,-328,-331,-402,-418,-435,-428,-420,-385,-437,-439,-431,
-445,-381,-437,-432,-434,-531,-535,-639,-637,-699,-684,-1126,-1111,-1172,-1169,
-4810,-4802,-4610,-2917,-1950,-1732]} 1. g3 {[%emt 0:00:04]} d5 {[%emt 0:02:11]
} 2. Bg2 {[%emt 0:00:04]} e5 {[%emt 0:02:16]} 3. d4 {[%emt 0:01:02]} exd4 {
[%emt 0:08:59]} 4. Nf3 {[%emt 0:05:16]} c5 {[%emt 0:02:39][%cal Yc7c5,Yc5b4]}
5. O-O {[%emt 0:00:11]} Nf6 {[%emt 0:09:01]} 6. b4 {[%emt 0:08:34] A00:
Irregular Openings.} cxb4 {[%emt 0:07:19] [#]} 7. Nxd4 $146 {[%emt 0:00:00]} ({
Predecessor:} 7. Bb2 Be7 8. Nxd4 O-O 9. Nd2 Nc6 10. N2f3 Ne4 11. Rb1 Qa5 12.
Nxc6 bxc6 13. Ne5 {0-1 (30) Pfleger,M (2252)-Schlager,T (2251) Germany 2009})
7... Be7 {[%emt 0:00:05]} 8. Bf4 {[%emt 0:04:28]} ({White should try} 8. a3 $11
) 8... O-O {[%emt 0:00:58]} 9. c3 {[%emt 0:02:12]} Nc6 {[%emt 0:02:37]} 10.
Nxc6 {[%emt 0:02:01]} bxc6 {[%emt 0:00:05]} 11. cxb4 {[%emt 0:00:13]} Bxb4 {
[%emt 0:03:45]} 12. Qa4 {[%emt 0:00:19]} Qb6 {[%emt 0:02:56]} 13. Nd2 {[%emt 0:
00:00] Strongly threatening Rab1.} c5 {[%emt 0:04:47]} 14. Rab1 {[%emt 0:08:36]
[#]} (14. a3 $142 Bxd2 15. Bxd2) 14... Qa6 $1 $17 {[%emt 0:02:15]} 15. Qc2 {
[%emt 0:02:52][%cal Yd2c4]} Qxe2 {[%emt 0:17:06]} 16. Rfe1 {[%emt 0:07:10]} Qh5
{[%emt 0:01:03] Hoping for ...Bf5.} 17. Re5 {[%emt 0:02:09] Prevents Bf5.} Qg6
{[%emt 0:00:08]} 18. Qxg6 {[%emt 0:01:43]} hxg6 {[%emt 0:00:01]} ({Stronger
than} 18... fxg6 19. Rxd5 Bh3 20. Rd6 (20. Bxh3 $2 Nxd5 21. Be6+ Kh8 $19) 20...
Bxg2 21. Kxg2 $15) 19. Nb3 {[%emt 0:07:53]} Bf5 {[%emt 0:05:56]} 20. Rc1 {
[%emt 0:00:00]} Ba3 {[%emt 0:01:56]} 21. Rce1 {[%emt 0:00:16]} Be6 {[%emt 0:00:
00]} 22. Bg5 {[%emt 0:02:01]} Rfe8 {[%emt 0:04:37]} 23. h3 {[%emt 0:00:30]} a5
{[%emt 0:00:05]} 24. Nc1 {[%emt 0:01:53]} c4 {[%emt 0:02:58] Against Nd3} 25.
Ne2 {[%emt 0:02:29]} Bb2 {[%emt 0:03:00]} 26. Re3 {[%emt 0:02:41]} Nh7 {
[%emt 0:00:00]} 27. Bf4 {[%emt 0:00:33]} Rad8 {[%emt 0:00:00]} 28. Bc7 {
[%emt 0:00:43]} Rd7 {[%emt 0:00:00]} 29. Bxa5 {[%emt 0:00:25]} d4 {[%emt 0:00:
00][%cal Yd5d4,Yd4d3,Yd3d2]} 30. Re5 {[%emt 0:02:28] Black is clearly winning.}
Rc8 {[%emt 0:02:07] Inhibits Bc6.} 31. Be4 {[%emt 0:11:37]} Nf6 {[%emt 0:04:38]
} 32. Bb1 {[%emt 0:00:00]} Nd5 {[%emt 0:01:15]} 33. Be4 {[%emt 0:00:00]} d3 {
[%emt 0:00:37]} 34. Bxd5 {[%emt 0:01:09]} Bxe5 {[%emt 0:00:12]} 35. Bxe6 {
[%emt 0:00:07]} fxe6 {[%emt 0:00:07]} 36. Nc3 {[%emt 0:00:09]} Bxc3 {[%emt 0:
00:21]} 37. Bxc3 {[%emt 0:00:07]} d2 {[%emt 0:00:02]} 38. Rd1 {[%emt 0:00:00]}
Rd3 {[%emt 0:00:05] Weighted Error Value: White=0.66/Black=0.06 (flawless)} 0-1

[Event "44th Chess Olympiad Open 2022"]
[Site "Chennai"]
[Date "2022.08.07"]
[Round "9.33"]
[White "Ashiku, Franc"]
[Black "Burgos Figueroa, Carlos E."]
[Result "0-1"]
[WhiteElo "2422"]
[BlackElo "2164"]
[Annotator "TA"]
[PlyCount "116"]
[EventDate "2022.??.??"]
[TimeControl "60"]

{[%evp 16,116,64,68,76,66,67,46,48,47,40,39,45,45,44,31,49,54,62,51,55,0,91,
102,102,78,114,97,137,65,35,45,111,113,147,144,145,96,94,82,87,75,110,86,98,
102,112,74,105,60,45,54,47,53,75,-27,114,120,129,87,174,174,174,174,220,179,
171,187,230,227,217,218,312,300,263,168,168,168,168,168,168,168,209,201,201,
176,170,13,14,14,40,14,16,15,15,13,18,0,0,-608,-597,-667,-615]} 1. d4 {[%emt 0:
00:00]} Nf6 {[%emt 0:00:04]} 2. c4 {[%emt 0:00:11]} c5 {[%emt 0:00:02]} 3. d5 {
[%emt 0:00:09]} b5 {[%emt 0:00:04]} 4. cxb5 {[%emt 0:00:10]} a6 {[%emt 0:00:02]
} 5. bxa6 {[%emt 0:00:10]} g6 {[%emt 0:00:19]} 6. Nc3 {[%emt 0:00:08]} Bg7 {
[%emt 0:00:04]} 7. Nf3 {[%emt 0:00:33]} O-O {[%emt 0:00:08]} 8. e4 {[%emt 0:00:
00]} d6 {[%emt 0:00:14]} 9. Be2 {[%emt 0:03:38]} Qa5 {[%emt 0:00:09] A58:
Benko/Volga Gambit: Lines with 5 bxa6.} 10. O-O {[%emt 0:01:10]} Bxa6 {[%emt 0:
00:00]} 11. Bd2 {[%emt 0:04:36]} Bxe2 {[%emt 0:01:49] White is slightly better.
} 12. Qxe2 {[%emt 0:05:52]} Qa6 {[%emt 0:00:20]} 13. Qd1 {[%emt 0:04:04]} Nbd7
{[%emt 0:00:05]} 14. Qc2 {[%emt 0:00:56]} Rfb8 {[%emt 0:00:47]} 15. a4 {
[%emt 0:22:35]} Qc4 {[%emt 0:04:29]} 16. Ra3 {[%emt 0:01:07] [#] Prevents Qb3.}
Ng4 $146 {[%emt 0:00:22]} ({Predecessor:} 16... Ne8 17. Rb1 Nc7 18. b3 Qa6 19.
Ne1 Ne5 20. h3 e6 21. dxe6 Nxe6 22. Nd5 Nd4 {½-½ (59) Rahul,S (2321)
-Natsidis,C (2335) Panevezys 2017}) 17. b3 {[%emt 0:03:20]} Qa6 {[%emt 0:00:06]
} 18. Na2 {[%emt 0:13:41]} (18. Rb1 $14) 18... Qe2 {[%emt 0:08:32]} (18... Nde5
$1 $11 19. Bf4 Nxf3+ 20. gxf3 Ne5 21. Bxe5 Bxe5) 19. Nc1 $36 {[%emt 0:03:12]
Black is under strong pressure.} Qa6 {[%emt 0:00:33]} 20. Nd3 {[%emt 0:09:19]}
Rc8 {[%emt 0:01:39]} 21. Rc1 {[%emt 0:01:53]} Rab8 {[%emt 0:00:00]} 22. Be1 {
[%emt 0:03:37]} (22. h3 $16 Nge5 23. Ndxe5 Nxe5 24. Nxe5 Bxe5 25. a5) 22...
Ngf6 $14 {[%emt 0:08:27]} 23. Nd2 {[%emt 0:01:00]} Nb6 {[%emt 0:00:00]} ({
Black should play} 23... Nf8 $1 $14) 24. a5 $16 {[%emt 0:02:42]} Na8 {[%emt 0:
03:36]} 25. Qc4 {[%emt 0:03:19]} Nc7 {[%emt 0:04:43]} 26. Qxa6 {[%emt 0:00:15]}
({White should try} 26. b4) 26... Nxa6 {[%emt 0:00:02]} 27. f3 {[%emt 0:00:23]}
Nd7 {[%emt 0:02:56]} 28. Nc4 {[%emt 0:00:18]} Rb5 {[%emt 0:00:00]} 29. Kf1 {
[%emt 0:01:58][%cal Yg1f1,Yf1e2,Ye2d3,Yd3c4,Yc4c3]} Rcb8 {[%emt 0:00:54]} 30.
Rb1 $1 {[%emt 0:00:21]} Bd4 {[%emt 0:00:42]} 31. Ke2 {[%emt 0:00:43]} f5 {
[%emt 0:00:15]} 32. Nc1 {[%emt 0:06:57]} Nf6 {[%emt 0:00:00]} 33. Kd3 {[%emt 0:
01:08]} fxe4+ {[%emt 0:00:07]} 34. fxe4 {[%emt 0:00:04]} Ng4 {[%emt 0:01:14]}
35. h3 {[%emt 0:00:53]} (35. Ne2 $16) 35... Ne5+ {[%emt 0:00:00]} (35... Nb4+
$1 $11 {keeps the balance.} 36. Ke2 Nf6) 36. Nxe5 {[%emt 0:00:00]} Bxe5 {
[%emt 0:00:12]} 37. Ra4 {[%emt 0:02:01]} Nb4+ {[%emt 0:03:07]} (37... Kf7 $16 {
was worth a try.}) 38. Kc4 $1 $18 {[%emt 0:01:13]} ({Don't do} 38. Bxb4 Rxb4
39. Kc2 (39. Rxb4 Rxb4 40. Kc2 Rb5 $16) 39... Rf8 $16) 38... Na6 {[%emt 0:01:
53]} 39. Nd3 $1 {[%emt 0:00:33]} Bd4 {[%emt 0:00:31]} (39... Bg7 $142 40. Bc3
Bxc3 41. Kxc3 Kg7) 40. Bc3 {[%emt 0:00:51]} Bxc3 {[%emt 0:01:47]} 41. Kxc3 {
[%emt 0:30:05]} R5b7 {[%emt 0:31:21]} 42. Kc4 {[%emt 0:03:31]} Kf7 {[%emt 0:00:
41]} 43. e5 {[%emt 0:00:00][%cal Ye4e5,Ye5e6]} Ke8 {[%emt 0:00:00]} (43... g5
$142 44. Rf1+ Kg6 45. exd6 exd6) 44. e6 {[%emt 0:00:00]} Kf8 {[%emt 0:00:00]}
45. b4 {[%emt 0:00:00]} cxb4 {[%emt 0:00:00]} 46. Rbxb4 {[%emt 0:00:00]} ({
Don't take} 46. Nxb4 $6 Kg7 $16) 46... Rc7+ {[%emt 0:00:00]} 47. Kd4 {[%emt 0:
00:00]} Nxb4 {[%emt 0:00:00]} 48. Nxb4 {[%emt 0:00:00] Endgame KRR-KRN} Rc1 {
[%emt 0:00:00]} 49. a6 {[%emt 0:00:00] White has strong compensation.} Rb1 {
[%emt 0:00:00]} 50. Kc3 {[%emt 0:00:00]} Rc1+ {[%emt 0:00:00] [#]} 51. Kb2 $2 {
[%emt 0:00:00]} ({Better is} 51. Kd3 $1 $18) 51... Rc5 $11 {[%emt 0:00:00]
Inhibits Nc6.} 52. a7 {[%emt 0:00:00]} Ra8 {[%emt 0:00:00]} 53. Nc6 {[%emt 0:
03:15]} Rb5+ $1 {[%emt 0:00:00]} 54. Ka3 {[%emt 0:01:20] Rb4 is the strong
threat.} Rxd5 {[%emt 0:00:00] And now ...Rc5 would win.} 55. Rb4 {[%emt 0:00:
35] Strongly threatening Rb8+.} Kg7 $1 {[%emt 0:00:00] White must now prevent .
..Rc5.} 56. Kb3 {[%emt 0:01:35]} (56. Rb8 $2 {[#]} Rxa7+ $3 57. Nxa7 Ra5+ 58.
Kb4 Rxa7 $19) 56... Rd1 {[%emt 0:00:20] Hoping for ...Rc1.} 57. Rb8 $2 {
[%emt 0:00:39] [#]} (57. Ka2 $11) 57... Rxa7 $3 $19 {[%emt 0:00:07]} 58. Kc2 {
[%emt 0:00:00]} (58. Rc8 Rb7+) 58... Raa1 {[%emt 0:00:23] Both players
deserved the win here. Weighted Error Value: White=0.38/Black=0.20 (precise)}
0-1

[Event "44th Chess Olympiad Open 2022"]
[Site "Chennai"]
[Date "2022.08.07"]
[Round "9.33"]
[White "Veleshnja, Zino"]
[Black "Morales Carlos"]
[Result "1-0"]
[WhiteElo "2263"]
[BlackElo "2036"]
[Annotator "NA RC"]
[PlyCount "63"]
[EventDate "2022.??.??"]
[TimeControl "60"]

1. d4 {[%emt 0:00:07]} Nf6 {[%emt 0:00:11]} 2. Nf3 {[%emt 0:00:31]} e6 {
[%emt 0:00:10]} 3. c4 {[%emt 0:00:20]} d5 {[%emt 0:00:05]} 4. g3 {[%emt 0:00:
00]} Be7 {[%emt 0:00:05]} 5. Bg2 {[%emt 0:00:05]} O-O {[%emt 0:00:13]} 6. O-O {
[%emt 0:00:09]} dxc4 {[%emt 0:00:08]} 7. Qc2 {[%emt 0:00:15]} b5 {[%emt 0:00:
00]} 8. a4 {[%emt 0:01:07]} c6 {[%emt 0:00:35]} 9. axb5 {[%emt 0:01:16]} cxb5 {
[%emt 0:01:48]} 10. Ng5 {[%emt 0:00:02]} h6 {[%emt 0:05:53]} 11. Nxf7 {[%emt 0:
00:00]} Rxf7 {[%emt 0:00:07]} 12. Bxa8 {[%emt 0:02:39]} Bf8 {[%emt 0:02:00]}
13. Bg2 {[%emt 0:00:00]} a6 {[%emt 0:02:01]} 14. Bf4 {[%emt 0:00:59]} Nbd7 {
[%emt 0:00:46]} 15. Nc3 {[%emt 0:03:14]} Nb6 {[%emt 0:01:39]} 16. Qg6 {[%emt 0:
00:00]} Nbd5 {[%emt 0:04:10]} 17. Nxd5 {[%emt 0:03:21]} exd5 {[%emt 0:07:37]}
18. Bxh6 {[%emt 0:06:48]} Ne4 {[%emt 0:05:30]} 19. Bxe4 {[%emt 0:05:22]} dxe4 {
[%emt 0:02:34]} 20. Be3 {[%emt 0:02:30]} Qd5 {[%emt 0:03:58]} 21. Rxa6 {
[%emt 0:04:54]} Bxa6 {[%emt 0:00:41]} 22. Qxa6 {[%emt 0:00:08]} b4 {[%emt 0:00:
00]} 23. Qc8 {[%emt 0:04:19]} Ra7 {[%emt 0:16:02]} 24. Rc1 {[%emt 0:00:50]} Ra2
{[%emt 0:14:16]} 25. Rxc4 {[%emt 0:01:42]} Rxb2 {[%emt 0:02:40]} 26. Rc5 {
[%emt 0:01:03]} Qf7 {[%emt 0:10:19]} 27. g4 {[%emt 0:09:06]} Rxe2 {[%emt 0:00:
00]} 28. Rf5 {[%emt 0:00:13]} Re1+ {[%emt 0:00:12]} 29. Kg2 {[%emt 0:00:13]}
Qe7 {[%emt 0:00:09]} 30. Qc4+ {[%emt 0:03:57]} Kh7 {[%emt 0:01:51]} 31. Rh5+ {
[%emt 0:00:15]} Kg6 {[%emt 0:00:12]} 32. Qg8 {[%emt 0:01:05]} 1-0

[Event "44th Chess Olympiad Open 2022"]
[Site "Chennai"]
[Date "2022.08.07"]
[Round "9.33"]
[White "Arias, Lemnys A."]
[Black "Mehmeti, Dritan"]
[Result "0-1"]
[WhiteElo "2258"]
[BlackElo "2371"]
[Annotator "RC"]
[PlyCount "108"]
[EventDate "2022.??.??"]
[TimeControl "60"]

1. d4 {[%emt 0:00:13]} c5 {[%emt 0:01:23]} 2. d5 {[%emt 0:00:19]} e5 {[%emt 0:
00:00]} 3. e4 {[%emt 0:01:51]} d6 {[%emt 0:00:07]} 4. c4 {[%emt 0:01:28]} Be7 {
[%emt 0:00:10]} 5. Nc3 {[%emt 0:00:06]} Bg5 {[%emt 0:01:40]} 6. Qa4+ {[%emt 0:
00:00]} Kf8 {[%emt 0:06:07]} 7. Qc2 {[%emt 0:03:27]} Bxc1 {[%emt 0:02:54]} 8.
Qxc1 {[%emt 0:00:05]} Ne7 {[%emt 0:09:12]} 9. Bd3 {[%emt 0:03:09]} Nd7 {
[%emt 0:01:00]} 10. Nge2 {[%emt 0:01:15]} a6 {[%emt 0:01:38]} 11. h4 {[%emt 0:
00:00]} h5 {[%emt 0:03:05]} 12. O-O {[%emt 0:14:37]} Ng6 {[%emt 0:11:41]} 13.
g3 {[%emt 0:30:53]} Rh6 {[%emt 0:08:24]} 14. Qg5 {[%emt 0:00:00]} Nf6 {[%emt 0:
00:00]} 15. f3 {[%emt 0:00:00]} Bd7 {[%emt 0:03:41]} 16. a4 {[%emt 0:00:00]}
Kg8 {[%emt 0:02:30]} 17. Rfb1 {[%emt 0:00:00]} a5 {[%emt 0:01:46]} 18. Kf2 {
[%emt 0:00:00]} Qf8 {[%emt 0:02:51]} 19. Ke1 {[%emt 0:00:00]} Nh7 {[%emt 0:00:
00]} 20. Qe3 {[%emt 0:00:00]} Ne7 {[%emt 0:00:24]} 21. f4 {[%emt 0:06:55]} exf4
{[%emt 0:01:44]} 22. gxf4 {[%emt 0:00:00]} Nf6 {[%emt 0:02:29]} 23. Kd2 {
[%emt 0:00:00]} Ng4 {[%emt 0:00:07]} 24. Qg3 {[%emt 0:00:00]} Re8 {[%emt 0:00:
00]} 25. Rf1 {[%emt 0:00:02]} Rg6 {[%emt 0:02:21]} 26. f5 {[%emt 0:08:48]} Rf6
{[%emt 0:00:01]} 27. Nf4 {[%emt 0:06:44]} g6 {[%emt 0:00:19]} 28. fxg6 {
[%emt 0:00:13]} fxg6 {[%emt 0:03:35]} 29. Nh3 {[%emt 0:00:35]} Qh6+ {[%emt 0:
00:00]} 30. Ng5 {[%emt 0:00:21]} Ref8 {[%emt 0:00:18]} 31. Kc2 {[%emt 0:08:23]}
Qg7 {[%emt 0:03:28]} 32. Rxf6 {[%emt 0:02:22]} Rxf6 {[%emt 0:02:38]} 33. Be2 {
[%emt 0:02:14]} Ne5 {[%emt 0:01:34]} 34. Rf1 {[%emt 0:01:59]} Kh8 {[%emt 0:00:
00]} 35. Rf2 {[%emt 0:02:58]} Ng8 {[%emt 0:01:00]} 36. Nd1 {[%emt 0:00:46]}
Bxa4+ {[%emt 0:01:35]} 37. b3 {[%emt 0:00:14]} Bd7 {[%emt 0:00:12]} 38. Nc3 {
[%emt 0:01:15]} Rxf2 {[%emt 0:02:33]} 39. Qxf2 {[%emt 0:00:11]} Qf6 {[%emt 0:
00:00]} 40. Qg3 {[%emt 0:00:32]} Nh6 {[%emt 0:01:30]} 41. Kd2 {[%emt 0:32:27]}
Nhf7 {[%emt 0:31:18]} 42. Nxf7+ {[%emt 0:00:00]} Nxf7 {[%emt 0:00:00]} 43. e5 {
[%emt 0:00:00]} Nxe5 {[%emt 0:00:00]} 44. Ne4 {[%emt 0:00:00]} Qe7 {[%emt 0:00:
00]} 45. Qf4 {[%emt 0:00:00]} Kg7 {[%emt 0:00:00]} 46. Ng5 {[%emt 0:00:00]} Qf6
{[%emt 0:00:00]} 47. Qg3 {[%emt 0:00:00]} Nf7 {[%emt 0:00:00]} 48. Nxf7 {
[%emt 0:00:00]} Kxf7 {[%emt 0:00:00]} 49. Bd3 {[%emt 0:00:00]} Qb2+ {[%emt 0:
00:00]} 50. Ke3 {[%emt 0:00:00]} Qe5+ {[%emt 0:00:00]} 51. Qxe5 {[%emt 0:00:00]
} dxe5 {[%emt 0:00:00]} 52. Be4 {[%emt 0:00:00]} b6 {[%emt 0:00:00]} 53. d6 {
[%emt 0:00:00]} Kf6 {[%emt 0:00:00]} 54. Bd5 {[%emt 0:00:00]} g5 {[%emt 0:00:
00]} 0-1